Cogmind - Beta 9.4 @@@ ROGUE MODE // 2020.02.13 @ 02:09:00 Player: zeramoth Result: Self-destructed Performance ------------- Evolutions (1) 500 Regions Visited (2) 400 Robots Destroyed (12) 60 Value Destroyed (270) 270 Prototype IDs (0) 0 Alien Tech Used (0) 0 Bonus (200) 200 TOTAL SCORE: 1430 Bonus ------- Pacifist 200 Cogmind --------- Core Integrity 331/400 Matter 290/300 Energy 265/265 System Corruption 0% Temperature Cool (0) Movement Walking (120) Location -9/Materials Parts ------- > --- POWER (1) -------- Improved Ion Engine > --- PROPULSION (2) --- Aluminum Leg Improved Aluminum Leg > --- UTILITY (3) ------ Small Storage Unit Structural Scanner > --- WEAPON (3) ------- EM Shotgun Light Assault Rifle > --- INVENTORY (6) ---- Ion Engine Light Treads Light Treads Aluminum Leg Rocket Launcher Peak State ------------ > --- POWER ------------ Improved Ion Engine > --- PROPULSION ------- Aluminum Leg Improved Aluminum Leg > --- UTILITY ---------- Heat Shielding Small Storage Unit Structural Scanner > --- WEAPON ----------- EM Shotgun EM Shotgun Beam Rifle > --- INVENTORY -------- Ion Engine Light Treads Light Treads Aluminum Leg Light Assault Rifle Rocket Launcher [Rating: 15] Favorites ----------- Power Ion Engine Engine Ion Engine Propulsion Aluminum Leg Leg Aluminum Leg Utility Small Storage Unit Device Structural Scanner Storage Small Storage Unit Weapon Light Assault Rifle Energy Gun EM Shotgun Ballistic Gun Light Assault Rifle Build | -11 -10 -9 ------- Run | Scr Mat Mat Slots Evolved 2 | . . 2 Power . | . . . Propulsion . | . . . Utility 1 | . . 1 Weapon 1 | . . 1 Parts Attached 16 | 6 1 9 Power 2 | 1 . 1 Engine 2 | 1 . 1 Core . | . . . Reactor . | . . . Propulsion 3 | 2 . 1 Treads . | . . . Leg 3 | 2 . 1 Wheel . | . . . Hover . | . . . Flight . | . . . Utility 3 | 1 . 2 Device 2 | . . 2 Storage 1 | 1 . . Processor . | . . . Hackware . | . . . Protection . | . . . Artifact . | . . . Weapon 8 | 2 1 5 Energy Gun 5 | . 1 4 Energy Cannon . | . . . Ballistic Gun 3 | 2 . 1 Ballistic Cannon . | . . . Launcher . | . . . Special Weapon . | . . . Impact Weapon . | . . . Slashing Weapon . | . . . Piercing Weapon . | . . . Special Melee Weapon . | . . . Unidentified Prototypes . | . . . Parts Lost 3 | . . 3 Power . | . . . Propulsion . | . . . Utility 1 | . . 1 Weapon 2 | . . 2 Highest Loss Streak 3 | . . 3 Average Slot Usage (%) 84 | . 85 83 Engine 12 | . 14 11 Leg 24 | . 28 22 Device 4 | . . 7 Storage 12 | . 14 11 Energy Gun 17 | . 1 28 Ballistic Gun 13 | . 26 3 Naked Turns . | . . . Heaviest Build 22 | 11 12 22 Greatest Support 23 | 20 20 23 Greatest Overweight (x) . | . . . Average Overweight (x) . | . . . Largest Inventory Capacity 6 | 6 6 6 Average Capacity 5 | 4 6 6 Most Carried 6 | 6 6 6 Average Carried 5 | 3 6 5 Final Capacity 6 | 6 6 6 Final Carried 6 | 6 6 5 Class Distribution -------------------- 58% | Mutant 29% | Gunner 12% | Skirmisher Dominant Class ---------------- Mutant | -10/Materials Gunner | -9/Materials Resources | -11 -10 -9 ----------- Run | Scr Mat Mat Matter Collected 353 | 115 . 238 Remotely . | . . . Salvage Created 369 | . . 369 Parts 27 | . . 27 Haulers Intercepted . | . . . Recyclers Shooed . | . . . Parts Field Recycled . | . . . Retrieved Matter . | . . . Parts Self-Destructed . | . . . Prevented . | . . . Kills | -11 -10 -9 ------- Run | Scr Mat Mat Combat Hostiles Destroyed 11 | . . 11 Guns 11 | . . 11 Classes Destroyed 4 | . . 4 Builder 1 | . . 1 Swarmer 6 | . . 6 Grunt 3 | . . 3 Sentry 2 | . . 2 Best Kill Streak 4 | . . 4 Combat Bots Only 3 | . . 3 Max Kills in Single Turn 1 | . . 1 Gunslinging . | . . . Exploded . | . . . Melee . | . . . Uniques/NPCs Destroyed . | . . . Combat | -11 -10 -9 -------- Run | Scr Mat Mat Damage Taken 424 | . . 424 Core 69 | . . 69 Absorbed by Shields . | . . . Core Remaining (%) 100 | 100 100 . Volleys Fired 24 | . 1 23 Largest 3 | . 2 3 Hottest 146 | . 40 146 Shots Fired 62 | . 2 60 Gun 62 | . 2 60 Cannon . | . . . Launcher . | . . . Special . | . . . Kinetic 11 | . 2 9 Thermal 10 | . . 10 Explosive . | . . . Electromagnetic 41 | . . 41 Robot Hit Streak 11 | . 1 11 Robot Miss Streak 3 | . 1 3 Penetration Max . | . . . Secondary Targets . | . . . Shots Hit Robots 42 | . 1 41 Core Hits 20 | . . 20 Critical Hits . | . . . Critical Kills . | . . . Critical Parts Destroyed . | . . . Melee Attacks . | . . . Impact . | . . . Slashing . | . . . Piercing . | . . . Sneak Attacks . | . . . Combat Hostiles . | . . . Follow-up Attacks . | . . . Damage Inflicted 514 | . . 514 Guns 435 | . . 435 Cannons . | . . . Explosions 65 | . . 65 Melee . | . . . Ramming 14 | . . 14 Kinetic 41 | . . 41 Thermal 149 | . . 149 Explosive . | . . . Electromagnetic 310 | . . 310 Impact . | . . . Slashing . | . . . Piercing . | . . . Highest Corruption . | . . . Average Corruption . | . . . Corruption Purged . | . . . Overload Shots . | . . . Overflow Damage . | . . . Projectiles . | . . . Explosions . | . . . Melee . | . . . Knockbacks . | . . . Impact . | . . . Kinetic . | . . . Secondary . | . . . Self-Inflicted Damage 7 | . . 7 Shots . | . . . Rammed 1 | . . 1 Targets Rammed 1 | . . 1 Kicked . | . . . Crushed . | . . . Highest Temperature 368 | . . 368 Average Temperature 131 | . . 131 Received Heat Transfer 135 | . . 135 Effects 5 | . . 5 Interference 4 | . . 4 Matter Decay 1 | . . 1 Siege Activations . | . . . Robots Corrupted . | . . . Combat Hostiles . | . . . Parts Fried 2 | . . 2 Impact Corruptions . | . . . Robots Melted . | . . . Combat Hostiles . | . . . Parts Melted 1 | . . 1 Heat Transferred 310 | . . 310 Parts Sabotaged . | . . . Parts Stolen . | . . . Parts Stripped . | . . . Power Chain Reactions 1 | . . 1 Missiles Intercepted . | . . . Alert | -11 -10 -9 ------- Run | Scr Mat Mat Peak Influence 295 | . 15 295 Average Influence 78 | . 5 149 Maximum Alert Level 1 | . . 1 Low Security (%) 86 | 100 100 73 Level 1 13 | . . 26 Level 2 . | . . . Level 3 . | . . . Level 4 . | . . . Level 5 . | . . . High Security . | . . . Max Security . | . . . Squads Dispatched . | . . . Investigation . | . . . Extermination . | . . . Reinforcement . | . . . Assault . | . . . Garrison . | . . . Intercept . | . . . Construction Impeded . | . . . Haulers Reinforced . | . . . Stealth | -11 -10 -9 --------- Run | Scr Mat Mat Distress Signals 3 | . 1 2 Communications Jammed . | . . . Distress Signals . | . . . Times Spotted 16 | . 1 15 Peak Tracking Total 5 | . 3 5 Tactical Retreats . | . . . Traps | -11 -10 -9 ------- Run | Scr Mat Mat Traps Triggered . | . . . Indirectly . | . . . Trap Hack Attempts . | . . . Triggered . | . . . Disarmed . | . . . Reprogrammed . | . . . Reused . | . . . Traps Extracted . | . . . Installed . | . . . Triggered . | . . . Machines | -11 -10 -9 ---------- Run | Scr Mat Mat Machines Disabled . | . . . Max in Single Turn . | . . . Machines Sabotaged . | . . . Garrisons Compromised . | . . . Overloaded Fab Kills . | . . . Fab Network Shutdowns . | . . . Hacking | -11 -10 -9 --------- Run | Scr Mat Mat Machines Accessed . | . . . Terminals . | . . . Fabricators . | . . . Repair Stations . | . . . Recycling Units . | . . . Scanalyzers . | . . . Garrison Access . | . . . Total Hacks . | . . . Successful . | . . . Failed . | . . . Catastrophic . | . . . Database Lockouts . | . . . Manual . | . . . Terminals . | . . . Fabricators . | . . . Repair Stations . | . . . Recycling Units . | . . . Scanalyzers . | . . . Garrison Access . | . . . Terminal Hacks . | . . . Fabricator Hacks . | . . . Repair Station Hacks . | . . . Recycling Unit Hacks . | . . . Scanalyzer . | . . . Garrison Access Hacks . | . . . Unauthorized Hacks . | . . . Terminals . | . . . Fabricators . | . . . Repair Stations . | . . . Recycling Units . | . . . Scanalyzers . | . . . Garrison Access . | . . . Data Cores Recovered . | . . . Used . | . . . Hacking Detections . | . . . Full Trace Events . | . . . Feedback Events . | . . . Feedback Blocked . | . . . Robot Schematics Acquired . | . . . Robots Built . | . . . Matter . | . . . Time . | . . . Total Robot Build Rating . | . . . Part Schematics Acquired . | . . . Parts Built . | . . . Matter . | . . . Time . | . . . Total Part Build Rating . | . . . Parts Repaired . | . . . Time . | . . . Parts Recycled . | . . . Recycled Matter . | . . . Retrieved Matter . | . . . Retrieved Components . | . . . Parts Scanalyzed . | . . . Part Schematics Acquired . | . . . Parts Damaged . | . . . Bothacking | -11 -10 -9 ------------ Run | Scr Mat Mat Used RIF Installer . | . . . Robots Hacked . | . . . Non-combat . | . . . Combat . | . . . Robot Hacks Applied . | . . . Relay Couplers Released . | . . . Robots Rewired . | . . . Allies Hacked . | . . . Hacks Repelled . | . . . Allies | -11 -10 -9 -------- Run | Scr Mat Mat Total Allies . | . . . Largest Group . | . . . Highest-Rated Group . | . . . Highest-Rated Ally . | . . . Total Orders . | . . . Ally Attacks . | . . . Total Damage . | . . . Kills . | . . . Allies Corrupted . | . . . Allies Melted . | . . . Intel | -11 -10 -9 ------- Run | Scr Mat Mat Robot Analysis Total . | . . . Derelict Logs Recovered . | . . . Drone Launches . | . . . Drone Recoveries . | . . . Exploration | -11 -10 -9 ------------- Run | Scr Mat Mat Turns Passed 659 | 74 246 339 Spaces Moved 438 | 56 202 180 Core 12 | 12 . . Treads . | . . . Legs 426 | 44 202 180 Wheels . | . . . Hover . | . . . Flight . | . . . Fastest Speed 50 | 50 120 120 Average Speed 118 | 105 120 120 Slowest Speed 120 | 120 120 120 Overloaded Moves . | . . . Propulsion Burnouts . | . . . Robots Hopped . | . . . Cave-ins Triggered . | . . . Exploration Rate (%) 22 | 4 39 24 Regions Visited 2 Branch Regions . Pre-discovered Areas . | . . . Known Exits Taken . | . . . Unknown Exits Taken 2 | 1 1 . Scrap Searched . | . . . Spaces Dug . | . . . Terrain Destroyed 2 | . . 2 Melee . | . . . Projectile . | . . . AOE 2 | . . 2 Actions | -11 -10 -9 --------- Run | Scr Mat Mat Total 527 | 68 204 255 Wait 35 | . . 35 Move 436 | 55 201 180 Hop . | . . . Pick Up 8 | 7 . 1 Fast Attach 12 | 5 1 6 Attach 3 | 1 . 2 Detach 1 | . . 1 Swap 1 | . . 1 Drop 6 | . 1 5 Fire 24 | . 1 23 Melee . | . . . Ram . | . . . Kick 1 | . . 1 Crush . | . . . Escape Stasis . | . . . Rewire . | . . . Trap . | . . . Miscellaneous . | . . . Route ------- -11/Scrapyard -10/Materials -9/Materials History --------- Turn | Location | Event 9 | -11/Scrapyard | Discovered new exit (range 14) 75 | -11/Scrapyard | Entered Materials 313 | -10/Materials | Build established: Mutant 314 | -10/Materials | Discovered new exit (range 7) 321 | -10/Materials | Entered another Materials area 321 | -9/Materials | Evolved 2 slots: Utility x1, Weapon x1 651 | -9/Materials | Lost 3 parts (1u2w) 660 | -9/Materials | Self-destructed Last Messages --------------- 00622_ G-47 Trooper destroyed. 00632_ Overheating: System interference. 00632_ Structural Scanner temporarily disabled. 00633_ Overheating: System interference. 00633_ Lgt. Assault Rifle temporarily disabled. 00633_ G-34 Mercenary destroyed. 00634_ U-05 Engineer lays Concrete. 00635_ K-01 Serf collects debris. 00636_ U-05 Engineer lays Concrete. 00639_ K-01 Serf collects debris. 00639_ U-05 Engineer lays Concrete. 00642_ K-01 Serf collects debris. 00642_ U-05 Engineer lays Concrete. 00646_ K-01 Serf collects debris. 00647_ U-05 Engineer lays Concrete. 00651_ K-01 Serf collects debris. 00652_ U-05 Engineer lays Concrete. 00653_ U-05 Engineer builds a Wall. 00654_ K-01 Serf collects debris. 00657_ U-05 Engineer builds a Door. Map ----- +----------------------------------------------------+ | ?????????????????????????????????????????????????? | | ?????????????????????????????????????????????????? | | ????????????????????????#+##?????????????????????? | | ???????????????????????? ?????????????????????? | | ???????????????????????# #?????????????????????? | | ??????????????????????? #?###+#???????????????? | | ???????????????????????#^^ # ????????????????? | | ???????????????????????# # """ ???????????????? | | ???????????????????????# = # """ #????????????? | | ?????????????????####### ==# """ ?????????????? | | ?????????????????? [u# ??????????????? | | ???????????????????? =*% """ ???????????????? | | ?????????????????????? %" """????????????????? | | ???????????????????????# =#?????????????????????? | | ???????????????????????# #?????????????????????? | | ???????????????????????# #?????????????????????? | | ??????????????########## #?????????????????????? | | ??????????????# # #?????????????????????? | | ??????????????#[ # #?????????????????????? | | ?????##########%* # #?????????????????????? | | ?????# T =%/ !% # #??#######????????????? | | ?????# """*# ! # #? #????????????? | | ?????# """ # ! # #? #????????????? | | ?????# """ # + # #????????????? | | ?????# # # # #????????????? | | ?????# """ # # @ + #????????????? | | ?#####[ """ ########## # #????????????? | | ?# + """ #????????# # #????????????? | | ?# ### #????????# #? #????????????? | | ?# #?#####+####????????# #? #????????????? | | #######?# +????????#^^^#??#######????????????? | | # ###????????# ?????????????????????? | | # #??????????+ ?????????????????????? | | + #??????????# ?????????????????????? | | # #??????????# ##????????????????????? | | ######### #??????????#m k#?????????????????????? | | ## ##?????????# #?????????????????????? | | ] = # ########### #?????????????????????? | | # ??????????????????????? | | + ??????????????????????? | | "" """ # ??????????????????????? | | "" """ # ###+###### ?????????????????????????? | | "" """ ## ##???????????????????????????????????? | | ## #????????????????????????????????????? | | ######### #????????????????????????????????????? | | ????????# #????????????????????????????????????? | | ????????# #????????????????????????????????????? | | ????????# #????????????????????????????????????? | | ?######## #????????????????????????????????????? | | ?# # #????????????????????????????????????? | +----------------------------------------------------+ Best States ------------- Heat Dissipation 28 Energy Generation 12 Energy Capacity 265 Matter Stores 300 Matter Capacity 300 Sight Range 16 Terrain Scan Density 10 Heat Shielding 75 Evasion (%) 50 Item Schematics ----------------- None Robot Schematics ------------------ None Fabricated ------------ Nothing Alien Tech Used ----------------- None Achievements -------------- None Challenges ------------ None Game ------ Seed ImprinterDisruptorPrototype Manual? 0 Play Time 00:04:57 Cumulative 22.2 hours Start 2020.01.31 @ 01:22:30 End 2020.02.13 @ 02:09:00 Sessions 3 Manual Loads 0 Difficulty Rogue Special Mode None Game No. 56 Rogue 56 Adventurer 0 Explorer 0 Win Type - Total 0 Types 0/0/0/0/0/0/0 Lore% 11 Gallery% 32 Achievement% 21 Wizard Run 0 Options --------- ASCII 0 Keyboard 1 Movement Vi Keybinds 0 Fullscreen 2 Font 24/Proggy Map View 76x50 Tactical HUD 1 Map Filters NONE Filters NONE Steam 1 RUN: b43d7181-af9f-404e-aa97-b86a3377ce5d